[Event "Titled Tuesday Blitz November 08 Early 2022"]
[White "Goltsev, Dmitry"]
[Black "Jeet, Jain"]
[WhiteFideId "24176710"]
[BlackFideId "5073022"]
[WhiteElo "2289"]
[BlackElo "2067"]
[Result "1-0"]
[Round "08"]
[TimeControl "180+1"]
[Date "2022.11.09"]
[WhiteClock "0:00:26"]
[BlackClock "0:00:03"]

1. e4 {[%clk 0:02:59]}  c6 {[%clk 0:02:59]} 2. d4 {[%clk 0:02:59]}  d5 {[%clk 0:02:59]} 3. Nc3 {[%clk 0:03:00]}  g6 {[%clk 0:02:57]} 4. e5 {[%clk 0:03:00]}  Bg7 {[%clk 0:02:57]} 5. Nf3 {[%clk 0:02:58]}  Bg4 {[%clk 0:02:56]} 6. h3 {[%clk 0:02:58]}  Bxf3 {[%clk 0:02:56]} 7. Qxf3 {[%clk 0:02:59]}  h5 {[%clk 0:02:54]} 8. Ne2 {[%clk 0:02:56]}  e6 {[%clk 0:02:50]} 9. c3 {[%clk 0:02:55]}  c5 {[%clk 0:02:51]} 10. Nf4 {[%clk 0:02:54]}  Nc6 {[%clk 0:02:49]} 11. Bd3 {[%clk 0:02:49]}  Nge7 {[%clk 0:02:46]} 12. Be3 {[%clk 0:02:45]}  cxd4 {[%clk 0:02:44]} 13. cxd4 {[%clk 0:02:46]}  Qa5+ {[%clk 0:02:44]} 14. Kf1 {[%clk 0:02:45]}  Qb4 {[%clk 0:02:37]} 15. Ne2 {[%clk 0:02:45]}  Qxb2 {[%clk 0:02:33]} 16. Rb1 {[%clk 0:02:45]}  Qa3 {[%clk 0:02:31]} 17. Bc1 {[%clk 0:02:41]}  Qxa2 {[%clk 0:02:23]} 18. Rxb7 {[%clk 0:02:41]}  a5 {[%clk 0:02:10]} 19. g4 {[%clk 0:02:34]}  hxg4 {[%clk 0:02:07]} 20. hxg4 {[%clk 0:02:35]}  Rxh1+ {[%clk 0:02:07]} 21. Qxh1 {[%clk 0:02:36]}  Rb8 {[%clk 0:02:04]} 22. Rxb8+ {[%clk 0:02:28]}  Nxb8 {[%clk 0:02:05]} 23. Qh7 {[%clk 0:02:26]}  Bf8 {[%clk 0:01:44]} 24. Qh8 {[%clk 0:02:15]}  Qb3 {[%clk 0:01:35]} 25. Bh6 {[%clk 0:02:11]}  Nd7 {[%clk 0:01:33]} 26. Nf4 {[%clk 0:02:11]}  Qd1+ {[%clk 0:01:30]} 27. Kg2 {[%clk 0:02:09]}  Qxg4+ {[%clk 0:01:31]} 28. Kf1 {[%clk 0:02:10]}  Qh4 {[%clk 0:01:24]} 29. Bg7 {[%clk 0:01:49]}  Qxh8 {[%clk 0:00:50]} 30. Bxh8 {[%clk 0:01:50]}  Nc6 {[%clk 0:00:46]} 31. Ne2 {[%clk 0:01:46]}  a4 {[%clk 0:00:43]} 32. Ke1 {[%clk 0:01:30]}  a3 {[%clk 0:00:38]} 33. Bb1 {[%clk 0:01:30]}  Nb4 {[%clk 0:00:27]} 34. Nc3 {[%clk 0:01:29]}  Bh6 {[%clk 0:00:27]} 35. Kd1 {[%clk 0:01:25]}  Nb6 {[%clk 0:00:26]} 36. Bf6 {[%clk 0:01:22]}  Nc4 {[%clk 0:00:26]} 37. Bh4 {[%clk 0:01:12]}  Nb2+ {[%clk 0:00:25]} 38. Ke2 {[%clk 0:01:10]}  Kd7 {[%clk 0:00:24]} 39. f3 {[%clk 0:01:07]}  Kc6 {[%clk 0:00:24]} 40. Be7 {[%clk 0:01:07]}  Na6 {[%clk 0:00:15]} 41. Bxa3 {[%clk 0:01:07]}  Nc4 {[%clk 0:00:16]} 42. Be7 {[%clk 0:01:08]}  Kd7 {[%clk 0:00:16]} 43. Bf6 {[%clk 0:01:06]}  Nb4 {[%clk 0:00:17]} 44. Na4 {[%clk 0:01:05]}  Nc6 {[%clk 0:00:16]} 45. Nc5+ {[%clk 0:01:04]}  Kc7 {[%clk 0:00:17]} 46. Nb3 {[%clk 0:01:03]}  Be3 {[%clk 0:00:16]} 47. Kd3 {[%clk 0:01:00]}  Nb4+ {[%clk 0:00:15]} 48. Kc3 {[%clk 0:01:01]}  Nc6 {[%clk 0:00:14]} 49. Bd3 {[%clk 0:01:01]}  Nb6 {[%clk 0:00:13]} 50. Bb5 {[%clk 0:01:00]}  Na7 {[%clk 0:00:13]} 51. Be8 {[%clk 0:01:00]}  Nc6 {[%clk 0:00:06]} 52. Bxf7 {[%clk 0:01:00]}  Nd8 {[%clk 0:00:07]} 53. Bxg6 {[%clk 0:00:59]}  Nd7 {[%clk 0:00:07]} 54. Kd3 {[%clk 0:00:52]}  Bh6 {[%clk 0:00:05]} 55. Be7 {[%clk 0:00:51]}  Nc6 {[%clk 0:00:05]} 56. Bc5 {[%clk 0:00:49]}  Nxc5+ {[%clk 0:00:05]} 57. Nxc5 {[%clk 0:00:50]}  Nd8 {[%clk 0:00:06]} 58. Bf7 {[%clk 0:00:50]}  Nxf7 {[%clk 0:00:05]} 59. Nxe6+ {[%clk 0:00:50]}  Kc6 {[%clk 0:00:05]} 60. f4 {[%clk 0:00:47]}  Kd7 {[%clk 0:00:06]} 61. f5 {[%clk 0:00:48]}  Ng5 {[%clk 0:00:06]} 62. Nf4 {[%clk 0:00:46]}  Kc6 {[%clk 0:00:05]} 63. f6 {[%clk 0:00:45]}  Ne4 {[%clk 0:00:04]} 64. Ke3 {[%clk 0:00:30]}  Kd7 {[%clk 0:00:03]} 65. Kf3 {[%clk 0:00:24]}  Bxf4 {[%clk 0:00:03]} 66. Kxf4 {[%clk 0:00:24]}  Ke6 {[%clk 0:00:04]} 67. Kg4 {[%clk 0:00:25]}  Nc3 {[%clk 0:00:03]} 68. Kg5 {[%clk 0:00:26]}  Ne4+ {[%clk 0:00:03]} 69. Kg6 {[%clk 0:00:26]} 1-0


[Site "https://www.chess.com"]

[Event "Titled Tuesday Blitz November 08 Early 2022"]
[White "Gonzalez, Francisco Silva"]
[Black "Johnson, Ben"]
[WhiteFideId "1512285"]
[BlackFideId "2010917"]
[WhiteElo "2159"]
[BlackElo "2144"]
[Result "1-0"]
[Round "08"]
[TimeControl "180+1"]
[Date "2022.11.09"]
[WhiteClock "0:01:28"]
[BlackClock "0:00:02"]

1. d4 {[%clk 0:03:00]}  Nf6 {[%clk 0:02:59]} 2. c4 {[%clk 0:03:01]}  e6 {[%clk 0:03:00]} 3. Nc3 {[%clk 0:03:01]}  Bb4 {[%clk 0:03:00]} 4. a3 {[%clk 0:03:01]}  Bxc3+ {[%clk 0:03:00]} 5. bxc3 {[%clk 0:03:02]}  O-O {[%clk 0:02:58]} 6. e3 {[%clk 0:03:02]}  d5 {[%clk 0:02:56]} 7. Bd3 {[%clk 0:03:02]}  c5 {[%clk 0:02:53]} 8. Ne2 {[%clk 0:03:02]}  Nc6 {[%clk 0:02:47]} 9. cxd5 {[%clk 0:03:02]}  exd5 {[%clk 0:02:45]} 10. f3 {[%clk 0:03:02]}  Re8 {[%clk 0:02:39]} 11. O-O {[%clk 0:03:02]}  b6 {[%clk 0:02:33]} 12. Rb1 {[%clk 0:03:00]}  Be6 {[%clk 0:02:27]} 13. Qe1 {[%clk 0:02:55]}  Nd7 {[%clk 0:02:13]} 14. Qf2 {[%clk 0:02:54]}  Nf8 {[%clk 0:02:07]} 15. e4 {[%clk 0:02:53]}  cxd4 {[%clk 0:02:02]} 16. cxd4 {[%clk 0:02:51]}  Na5 {[%clk 0:01:54]} 17. e5 {[%clk 0:02:51]}  Rc8 {[%clk 0:01:45]} 18. f4 {[%clk 0:02:50]}  f5 {[%clk 0:01:34]} 19. exf6 {[%clk 0:02:50]}  Qxf6 {[%clk 0:01:32]} 20. f5 {[%clk 0:02:50]}  Bf7 {[%clk 0:01:28]} 21. g4 {[%clk 0:02:50]}  h6 {[%clk 0:01:20]} 22. h4 {[%clk 0:02:49]}  Nc4 {[%clk 0:00:43]} 23. g5 {[%clk 0:02:47]}  hxg5 {[%clk 0:00:43]} 24. hxg5 {[%clk 0:02:45]}  Rxe2 {[%clk 0:00:30]} 25. Bxe2 {[%clk 0:02:45]}  Qd6 {[%clk 0:00:29]} 26. g6 {[%clk 0:02:34]}  Be8 {[%clk 0:00:29]} 27. Rb4 {[%clk 0:02:14]}  Bd7 {[%clk 0:00:28]} 28. Bf4 {[%clk 0:02:12]}  Qf6 {[%clk 0:00:25]} 29. Bc1 {[%clk 0:02:10]}  b5 {[%clk 0:00:20]} 30. a4 {[%clk 0:02:07]}  a6 {[%clk 0:00:19]} 31. axb5 {[%clk 0:02:07]}  axb5 {[%clk 0:00:20]} 32. Qf4 {[%clk 0:02:05]}  Re8 {[%clk 0:00:19]} 33. Bf3 {[%clk 0:02:00]}  Bc6 {[%clk 0:00:14]} 34. Rxb5 {[%clk 0:02:00]}  Bxb5 {[%clk 0:00:10]} 35. Bxd5+ {[%clk 0:02:00]}  Ne6 {[%clk 0:00:10]} 36. fxe6 {[%clk 0:01:57]}  Qxf4 {[%clk 0:00:08]} 37. Bxf4 {[%clk 0:01:55]}  Nb6 {[%clk 0:00:08]} 38. Ba2 {[%clk 0:01:34]}  Bxf1 {[%clk 0:00:08]} 39. Kxf1 {[%clk 0:01:31]}  Rf8 {[%clk 0:00:06]} 40. e7+ {[%clk 0:01:31]}  Kh8 {[%clk 0:00:02]} 41. exf8=R# {[%clk 0:01:28]} 1-0


[Site "https://www.chess.com"]

[Event "Titled Tuesday Blitz November 08 Early 2022"]
[White "Gonzalez Vega, Alejandro"]
[Black "Orzech, Dominik"]
[WhiteFideId "3510042"]
[BlackFideId "1115065"]
[WhiteElo "2296"]
[BlackElo "2272"]
[Result "0-1"]
[Round "08"]
[TimeControl "180+1"]
[Date "2022.11.09"]
[WhiteClock "0:00:15"]
[BlackClock "0:00:07"]

1. e4 {[%clk 0:02:56]}  c6 {[%clk 0:02:15]} 2. d4 {[%clk 0:02:53]}  d5 {[%clk 0:02:16]} 3. exd5 {[%clk 0:02:53]}  cxd5 {[%clk 0:02:12]} 4. Bd3 {[%clk 0:02:53]}  Nf6 {[%clk 0:02:12]} 5. c3 {[%clk 0:02:52]}  Nc6 {[%clk 0:02:08]} 6. Bf4 {[%clk 0:02:52]}  Bg4 {[%clk 0:02:03]} 7. Qb3 {[%clk 0:02:51]}  Qc8 {[%clk 0:02:00]} 8. Nd2 {[%clk 0:02:51]}  e6 {[%clk 0:01:49]} 9. Ngf3 {[%clk 0:02:50]}  Be7 {[%clk 0:01:47]} 10. O-O {[%clk 0:02:50]}  O-O {[%clk 0:01:44]} 11. Rfe1 {[%clk 0:02:49]}  a6 {[%clk 0:01:37]} 12. h3 {[%clk 0:02:47]}  Bh5 {[%clk 0:01:33]} 13. Ne5 {[%clk 0:02:47]}  Nxe5 {[%clk 0:01:32]} 14. Bxe5 {[%clk 0:02:47]}  Bg6 {[%clk 0:01:31]} 15. Bxg6 {[%clk 0:02:46]}  hxg6 {[%clk 0:01:30]} 16. a4 {[%clk 0:02:46]}  Nd7 {[%clk 0:01:24]} 17. Bg3 {[%clk 0:02:43]}  Qc6 {[%clk 0:01:16]} 18. a5 {[%clk 0:02:37]}  Rfc8 {[%clk 0:01:13]} 19. Bf4 {[%clk 0:01:50]}  b5 {[%clk 0:01:12]} 20. axb6 {[%clk 0:01:48]}  Nxb6 {[%clk 0:01:12]} 21. Ra5 {[%clk 0:01:42]}  Bd8 {[%clk 0:01:08]} 22. Rc5 {[%clk 0:01:34]}  Qd7 {[%clk 0:01:06]} 23. Rxc8 {[%clk 0:01:33]}  Rxc8 {[%clk 0:01:03]} 24. Ra1 {[%clk 0:01:33]}  Qb5 {[%clk 0:01:02]} 25. Qa2 {[%clk 0:01:15]}  Ra8 {[%clk 0:00:58]} 26. Qb3 {[%clk 0:01:04]}  Qe2 {[%clk 0:00:54]} 27. Be3 {[%clk 0:00:56]}  a5 {[%clk 0:00:44]} 28. Qd1 {[%clk 0:00:54]}  Qd3 {[%clk 0:00:42]} 29. Nb3 {[%clk 0:00:50]}  Qb5 {[%clk 0:00:39]} 30. Qc2 {[%clk 0:00:39]}  Nc4 {[%clk 0:00:37]} 31. Bc1 {[%clk 0:00:38]}  Be7 {[%clk 0:00:34]} 32. Nd2 {[%clk 0:00:36]}  Nb6 {[%clk 0:00:31]} 33. b3 {[%clk 0:00:33]}  Rc8 {[%clk 0:00:29]} 34. Ba3 {[%clk 0:00:29]}  Bb4 {[%clk 0:00:27]} 35. Bb2 {[%clk 0:00:27]}  Qe2 {[%clk 0:00:25]} 36. Rc1 {[%clk 0:00:25]}  Be7 {[%clk 0:00:21]} 37. Nf3 {[%clk 0:00:22]}  Qb5 {[%clk 0:00:18]} 38. Qd2 {[%clk 0:00:21]}  a4 {[%clk 0:00:18]} 39. bxa4 {[%clk 0:00:19]}  Nxa4 {[%clk 0:00:19]} 40. Ba1 {[%clk 0:00:19]}  Ba3 {[%clk 0:00:16]} 41. Rd1 {[%clk 0:00:18]}  Qb3 {[%clk 0:00:16]} 42. Ne5 {[%clk 0:00:17]}  Nxc3 {[%clk 0:00:15]} 43. Bxc3 {[%clk 0:00:17]}  Rxc3 {[%clk 0:00:14]} 44. Qf4 {[%clk 0:00:15]}  Rc7 {[%clk 0:00:12]} 45. Re1 {[%clk 0:00:15]}  Bd6 {[%clk 0:00:10]} 46. Re3 {[%clk 0:00:15]}  Qb1+ {[%clk 0:00:09]} 47. Kh2 {[%clk 0:00:16]}  Qf5 {[%clk 0:00:10]} 48. Qxf5 {[%clk 0:00:16]}  gxf5 {[%clk 0:00:11]} 49. f4 {[%clk 0:00:16]}  f6 {[%clk 0:00:08]} 50. Nd3 {[%clk 0:00:16]}  Rc3 {[%clk 0:00:08]} 51. Nf2 {[%clk 0:00:15]}  Bxf4+ {[%clk 0:00:07]} 0-1


[Site "https://www.chess.com"]

[Event "Titled Tuesday Blitz November 08 Early 2022"]
[White "Goroshkov, Maksym"]
[Black "Shimanov, Aleksandr"]
[WhiteFideId "14142716"]
[BlackFideId "4198603"]
[WhiteElo "2257"]
[BlackElo "2605"]
[Result "0-1"]
[Round "08"]
[TimeControl "180+1"]
[Date "2022.11.09"]
[WhiteClock "0:00:06"]
[BlackClock "0:00:05"]

1. e4 {[%clk 0:02:59]}  e6 {[%clk 0:02:58]} 2. d4 {[%clk 0:02:59]}  d5 {[%clk 0:02:58]} 3. exd5 {[%clk 0:03:00]}  Qxd5 {[%clk 0:02:54]} 4. c4 {[%clk 0:02:59]}  Qd8 {[%clk 0:02:52]} 5. Nc3 {[%clk 0:02:59]}  Nf6 {[%clk 0:02:53]} 6. Nf3 {[%clk 0:02:59]}  b6 {[%clk 0:02:52]} 7. Be2 {[%clk 0:02:57]}  Bb7 {[%clk 0:02:52]} 8. O-O {[%clk 0:02:58]}  Be7 {[%clk 0:02:52]} 9. Ne5 {[%clk 0:02:57]}  O-O {[%clk 0:02:52]} 10. Bf3 {[%clk 0:02:58]}  Qc8 {[%clk 0:02:51]} 11. Bg5 {[%clk 0:02:54]}  Re8 {[%clk 0:02:31]} 12. Qe2 {[%clk 0:02:49]}  c5 {[%clk 0:02:18]} 13. Bxf6 {[%clk 0:02:37]}  Bxf6 {[%clk 0:02:16]} 14. Ne4 {[%clk 0:02:37]}  Be7 {[%clk 0:02:09]} 15. d5 {[%clk 0:02:18]}  exd5 {[%clk 0:02:03]} 16. cxd5 {[%clk 0:02:17]}  Bxd5 {[%clk 0:01:29]} 17. Rad1 {[%clk 0:01:41]}  Bb7 {[%clk 0:01:27]} 18. Bg4 {[%clk 0:01:38]}  Qc7 {[%clk 0:01:24]} 19. Nxf7 {[%clk 0:01:12]}  Kxf7 {[%clk 0:00:57]} 20. Be6+ {[%clk 0:01:01]}  Kf8 {[%clk 0:00:33]} 21. Qh5 {[%clk 0:00:54]}  Bf6 {[%clk 0:00:28]} 22. Nxf6 {[%clk 0:00:35]}  gxf6 {[%clk 0:00:27]} 23. Rd7 {[%clk 0:00:34]}  Qxd7 {[%clk 0:00:26]} 24. Bxd7 {[%clk 0:00:34]}  Nxd7 {[%clk 0:00:27]} 25. Qxh7 {[%clk 0:00:33]}  Re7 {[%clk 0:00:22]} 26. Qh8+ {[%clk 0:00:33]}  Kf7 {[%clk 0:00:22]} 27. Qh7+ {[%clk 0:00:33]}  Ke8 {[%clk 0:00:19]} 28. Qh8+ {[%clk 0:00:27]}  Nf8 {[%clk 0:00:19]} 29. Qxf6 {[%clk 0:00:27]}  Rd8 {[%clk 0:00:20]} 30. h4 {[%clk 0:00:27]}  Rd4 {[%clk 0:00:18]} 31. h5 {[%clk 0:00:27]}  Re6 {[%clk 0:00:15]} 32. Qf5 {[%clk 0:00:27]}  Rd5 {[%clk 0:00:15]} 33. Qg4 {[%clk 0:00:26]}  Kf7 {[%clk 0:00:11]} 34. Qf4+ {[%clk 0:00:23]}  Rf6 {[%clk 0:00:10]} 35. Qc7+ {[%clk 0:00:23]}  Rd7 {[%clk 0:00:10]} 36. Qg3 {[%clk 0:00:23]}  Bd5 {[%clk 0:00:10]} 37. f3 {[%clk 0:00:23]}  Be6 {[%clk 0:00:10]} 38. Re1 {[%clk 0:00:23]}  Re7 {[%clk 0:00:10]} 39. Qd6 {[%clk 0:00:22]}  Nh7 {[%clk 0:00:07]} 40. Qe5 {[%clk 0:00:18]}  Rf5 {[%clk 0:00:06]} 41. Qh2 {[%clk 0:00:15]}  Nf6 {[%clk 0:00:06]} 42. h6 {[%clk 0:00:15]}  Rh5 {[%clk 0:00:05]} 43. Qf4 {[%clk 0:00:15]}  Rf5 {[%clk 0:00:04]} 44. Qh4 {[%clk 0:00:15]}  Rh5 {[%clk 0:00:04]} 45. Qf4 {[%clk 0:00:16]}  Kg6 {[%clk 0:00:03]} 46. g4 {[%clk 0:00:15]}  Rd5 {[%clk 0:00:03]} 47. h7 {[%clk 0:00:11]}  Nxh7 {[%clk 0:00:02]} 48. Qa4 {[%clk 0:00:09]}  Kf7 {[%clk 0:00:03]} 49. f4 {[%clk 0:00:08]}  Rd4 {[%clk 0:00:03]} 50. Qc2 {[%clk 0:00:07]}  Nf8 {[%clk 0:00:02]} 51. f5 {[%clk 0:00:08]}  Bd5 {[%clk 0:00:03]} 52. Rxe7+ {[%clk 0:00:09]}  Kxe7 {[%clk 0:00:04]} 53. g5 {[%clk 0:00:09]}  Rg4+ {[%clk 0:00:04]} 54. Kf1 {[%clk 0:00:10]}  Rxg5 {[%clk 0:00:04]} 55. Qe2+ {[%clk 0:00:10]}  Kf6 {[%clk 0:00:04]} 56. Qe8 {[%clk 0:00:10]}  Rxf5+ {[%clk 0:00:04]} 57. Kg1 {[%clk 0:00:09]}  Ne6 {[%clk 0:00:05]} 58. Qb8 {[%clk 0:00:08]}  c4 {[%clk 0:00:04]} 59. Qxa7 {[%clk 0:00:08]}  b5 {[%clk 0:00:04]} 60. Qb6 {[%clk 0:00:07]}  Be4 {[%clk 0:00:04]} 61. Qb8 {[%clk 0:00:06]}  Re5 {[%clk 0:00:03]} 62. Qh8+ {[%clk 0:00:07]}  Kf5 {[%clk 0:00:03]} 63. Qh5+ {[%clk 0:00:07]}  Kf4 {[%clk 0:00:04]} 64. Qh2+ {[%clk 0:00:07]}  Kf5 {[%clk 0:00:03]} 65. Qh5+ {[%clk 0:00:08]}  Ng5 {[%clk 0:00:04]} 66. Kf2 {[%clk 0:00:07]}  Rd5 {[%clk 0:00:04]} 67. Qe8 {[%clk 0:00:06]}  Kf4 {[%clk 0:00:04]} 68. Qf8+ {[%clk 0:00:06]}  Rf5 {[%clk 0:00:04]} 69. Qd6+ {[%clk 0:00:06]}  Kg4+ {[%clk 0:00:03]} 70. Ke3 {[%clk 0:00:07]}  Bd3 {[%clk 0:00:04]} 71. Qd7 {[%clk 0:00:06]}  Nf3 {[%clk 0:00:03]} 72. Qg7+ {[%clk 0:00:05]}  Ng5 {[%clk 0:00:03]} 73. Qd7 {[%clk 0:00:05]}  Kg3 {[%clk 0:00:03]} 74. Qd6+ {[%clk 0:00:05]}  Kg2 {[%clk 0:00:03]} 75. Qc6+ {[%clk 0:00:05]}  Ne4 {[%clk 0:00:03]} 76. Kd4 {[%clk 0:00:05]}  Kf3 {[%clk 0:00:04]} 77. Qg6 {[%clk 0:00:05]}  Rf4 {[%clk 0:00:04]} 78. Qh5+ {[%clk 0:00:05]}  Kf2 {[%clk 0:00:03]} 79. Qh2+ {[%clk 0:00:05]}  Kf3 {[%clk 0:00:04]} 80. Ke5 {[%clk 0:00:06]}  Ng3 {[%clk 0:00:03]} 81. Qd2 {[%clk 0:00:05]}  Ne2 {[%clk 0:00:03]} 82. a4 {[%clk 0:00:04]}  bxa4 {[%clk 0:00:04]} 83. Kd5 {[%clk 0:00:05]}  Re4 {[%clk 0:00:04]} 84. Kc5 {[%clk 0:00:05]}  Nf4 {[%clk 0:00:04]} 85. Qd1+ {[%clk 0:00:05]}  Re2 {[%clk 0:00:04]} 86. Qh1+ {[%clk 0:00:06]}  Ke3 {[%clk 0:00:05]} 87. Qg1+ {[%clk 0:00:06]}  Ke4 {[%clk 0:00:05]} 88. Qd4+ {[%clk 0:00:06]}  Kf5 {[%clk 0:00:05]} 89. Kd6 {[%clk 0:00:06]}  Ne6 {[%clk 0:00:05]} 90. Qd5+ {[%clk 0:00:06]}  Kf6 {[%clk 0:00:05]} 91. Qd4+ {[%clk 0:00:06]}  Nxd4 {[%clk 0:00:05]} 0-1


[Site "https://www.chess.com"]

[Event "Titled Tuesday Blitz November 08 Early 2022"]
[White "Goryachkina, Aleksandra"]
[Black "Ilkhomi, Jaloliddin"]
[WhiteFideId "4147103"]
[BlackFideId "14700948"]
[WhiteElo "2484"]
[BlackElo "2045"]
[Result "1-0"]
[Round "08"]
[TimeControl "180+1"]
[Date "2022.11.09"]
[WhiteClock "0:00:08"]
[BlackClock "0:00:05"]

1. e4 {[%clk 0:02:59]}  e6 {[%clk 0:03:00]} 2. d4 {[%clk 0:02:59]}  d5 {[%clk 0:03:00]} 3. Nc3 {[%clk 0:02:58]}  Bb4 {[%clk 0:03:00]} 4. exd5 {[%clk 0:02:58]}  exd5 {[%clk 0:03:00]} 5. Bd3 {[%clk 0:02:58]}  Ne7 {[%clk 0:03:00]} 6. Ne2 {[%clk 0:02:57]}  O-O {[%clk 0:03:01]} 7. O-O {[%clk 0:02:55]}  Nbc6 {[%clk 0:03:01]} 8. a3 {[%clk 0:02:53]}  Bd6 {[%clk 0:03:00]} 9. Ng3 {[%clk 0:02:43]}  f5 {[%clk 0:02:35]} 10. Nge2 {[%clk 0:02:20]}  Be6 {[%clk 0:02:24]} 11. Bf4 {[%clk 0:02:00]}  a6 {[%clk 0:02:22]} 12. Qd2 {[%clk 0:01:55]}  Ng6 {[%clk 0:02:17]} 13. Bxd6 {[%clk 0:01:52]}  Qxd6 {[%clk 0:02:18]} 14. Rfe1 {[%clk 0:01:50]}  Rae8 {[%clk 0:02:10]} 15. Na4 {[%clk 0:01:45]}  f4 {[%clk 0:01:58]} 16. Bxg6 {[%clk 0:01:41]}  hxg6 {[%clk 0:01:54]} 17. f3 {[%clk 0:01:39]}  g5 {[%clk 0:01:51]} 18. Nc5 {[%clk 0:01:38]}  Bc8 {[%clk 0:01:44]} 19. Nc3 {[%clk 0:01:08]}  b6 {[%clk 0:01:42]} 20. Nb3 {[%clk 0:01:06]}  Bf5 {[%clk 0:01:41]} 21. Rxe8 {[%clk 0:00:31]}  Rxe8 {[%clk 0:01:41]} 22. Nc1 {[%clk 0:00:30]}  Re3 {[%clk 0:01:39]} 23. N1e2 {[%clk 0:00:28]}  g4 {[%clk 0:01:30]} 24. fxg4 {[%clk 0:00:24]}  Bxg4 {[%clk 0:01:31]} 25. Nxf4 {[%clk 0:00:17]}  Re8 {[%clk 0:00:16]} 26. Nfxd5 {[%clk 0:00:17]}  Be6 {[%clk 0:00:15]} 27. Nf4 {[%clk 0:00:10]}  Nxd4 {[%clk 0:00:09]} 28. Rd1 {[%clk 0:00:05]}  c5 {[%clk 0:00:08]} 29. Nxe6 {[%clk 0:00:05]}  Rxe6 {[%clk 0:00:08]} 30. Qf2 {[%clk 0:00:05]}  Qe5 {[%clk 0:00:05]} 31. Rf1 {[%clk 0:00:04]}  Qe3 {[%clk 0:00:04]} 32. Qxe3 {[%clk 0:00:04]}  Rxe3 {[%clk 0:00:05]} 33. Kf2 {[%clk 0:00:04]}  Re5 {[%clk 0:00:05]} 34. Rc1 {[%clk 0:00:04]}  Rf5+ {[%clk 0:00:06]} 35. Ke3 {[%clk 0:00:04]}  Re5+ {[%clk 0:00:06]} 36. Kd3 {[%clk 0:00:04]}  b5 {[%clk 0:00:06]} 37. Ne4 {[%clk 0:00:04]}  Rd5 {[%clk 0:00:05]} 38. Ke3 {[%clk 0:00:03]}  Nf5+ {[%clk 0:00:06]} 39. Kf4 {[%clk 0:00:04]}  Kf7 {[%clk 0:00:06]} 40. b4 {[%clk 0:00:03]}  c4 {[%clk 0:00:03]} 41. Nc3 {[%clk 0:00:03]}  Rd4+ {[%clk 0:00:01]} 42. Kxf5 {[%clk 0:00:04]}  Rd2 {[%clk 0:00:02]} 43. Ne4 {[%clk 0:00:04]}  Rxg2 {[%clk 0:00:03]} 44. h4 {[%clk 0:00:04]}  Rh2 {[%clk 0:00:03]} 45. Kg4 {[%clk 0:00:04]}  g6 {[%clk 0:00:03]} 46. Ng5+ {[%clk 0:00:04]}  Kg7 {[%clk 0:00:03]} 47. Nf3 {[%clk 0:00:04]}  Rf2 {[%clk 0:00:04]} 48. Kf4 {[%clk 0:00:04]}  Re2 {[%clk 0:00:04]} 49. c3 {[%clk 0:00:04]}  Kf6 {[%clk 0:00:04]} 50. Nd4 {[%clk 0:00:04]}  Rh2 {[%clk 0:00:04]} 51. Kg3 {[%clk 0:00:04]}  Ra2 {[%clk 0:00:05]} 52. Re1 {[%clk 0:00:04]}  Rxa3 {[%clk 0:00:04]} 53. Re3 {[%clk 0:00:04]}  a5 {[%clk 0:00:03]} 54. Nxb5 {[%clk 0:00:04]}  Ra4 {[%clk 0:00:02]} 55. bxa5 {[%clk 0:00:04]}  Rxa5 {[%clk 0:00:03]} 56. Nd6 {[%clk 0:00:05]}  Ra3 {[%clk 0:00:04]} 57. Nxc4 {[%clk 0:00:05]}  Rb3 {[%clk 0:00:04]} 58. Nd6 {[%clk 0:00:05]}  g5 {[%clk 0:00:03]} 59. Ne4+ {[%clk 0:00:05]}  Kf5 {[%clk 0:00:03]} 60. Nxg5 {[%clk 0:00:05]}  Rb1 {[%clk 0:00:04]} 61. Nf3 {[%clk 0:00:05]}  Kg6 {[%clk 0:00:04]} 62. Kf4 {[%clk 0:00:06]}  Rh1 {[%clk 0:00:03]} 63. Ke4 {[%clk 0:00:06]}  Rc1 {[%clk 0:00:03]} 64. Kd4 {[%clk 0:00:06]}  Kf5 {[%clk 0:00:04]} 65. c4 {[%clk 0:00:05]}  Rd1+ {[%clk 0:00:04]} 66. Rd3 {[%clk 0:00:06]}  Rc1 {[%clk 0:00:04]} 67. c5 {[%clk 0:00:06]}  Ke6 {[%clk 0:00:05]} 68. Rc3 {[%clk 0:00:06]}  Rd1+ {[%clk 0:00:05]} 69. Ke4 {[%clk 0:00:07]}  Kd7 {[%clk 0:00:05]} 70. Kf4 {[%clk 0:00:07]}  Kc6 {[%clk 0:00:05]} 71. Ne5+ {[%clk 0:00:06]}  Kc7 {[%clk 0:00:06]} 72. c6 {[%clk 0:00:07]}  Rh1 {[%clk 0:00:06]} 73. Kg5 {[%clk 0:00:07]}  Re1 {[%clk 0:00:07]} 74. Ng4 {[%clk 0:00:07]}  Rc1 {[%clk 0:00:05]} 75. Rxc1 {[%clk 0:00:06]}  Kd6 {[%clk 0:00:06]} 76. h5 {[%clk 0:00:06]}  Ke7 {[%clk 0:00:07]} 77. h6 {[%clk 0:00:07]}  Ke6 {[%clk 0:00:07]} 78. h7 {[%clk 0:00:07]}  Kd5 {[%clk 0:00:08]} 79. h8=Q {[%clk 0:00:08]}  Ke4 {[%clk 0:00:09]} 80. Qe5+ {[%clk 0:00:08]}  Kf3 {[%clk 0:00:09]} 81. Rf1+ {[%clk 0:00:08]}  Kg2 {[%clk 0:00:06]} 82. Qh2+ {[%clk 0:00:08]}  Kxf1 {[%clk 0:00:05]} 83. Qf2# {[%clk 0:00:08]} 1-0


[Site "https://www.chess.com"]

[Event "Titled Tuesday Blitz November 08 Early 2022"]
[White "Guimaraes, Wagner Peixoto"]
[Black "Mills, Morgen"]
[WhiteFideId "2100940"]
[BlackFideId "2013304"]
[WhiteElo "2231"]
[BlackElo "2279"]
[Result "1-0"]
[Round "08"]
[TimeControl "180+1"]
[Date "2022.11.09"]
[WhiteClock "0:00:20"]
[BlackClock "0:00:03"]

1. d4 {[%clk 0:03:00]}  d5 {[%clk 0:02:59]} 2. c4 {[%clk 0:03:00]}  e6 {[%clk 0:03:00]} 3. Nc3 {[%clk 0:02:53]}  a6 {[%clk 0:02:59]} 4. cxd5 {[%clk 0:02:47]}  exd5 {[%clk 0:03:00]} 5. Nf3 {[%clk 0:02:48]}  Nf6 {[%clk 0:02:57]} 6. e3 {[%clk 0:02:44]}  c6 {[%clk 0:02:54]} 7. Qc2 {[%clk 0:02:40]}  Bd6 {[%clk 0:02:53]} 8. Be2 {[%clk 0:02:35]}  Qe7 {[%clk 0:02:51]} 9. O-O {[%clk 0:02:33]}  g6 {[%clk 0:02:45]} 10. Bd3 {[%clk 0:02:13]}  O-O {[%clk 0:02:44]} 11. e4 {[%clk 0:02:08]}  dxe4 {[%clk 0:02:44]} 12. Nxe4 {[%clk 0:02:08]}  Nxe4 {[%clk 0:02:43]} 13. Bxe4 {[%clk 0:02:09]}  Re8 {[%clk 0:02:40]} 14. Bd3 {[%clk 0:01:55]}  Bg4 {[%clk 0:02:33]} 15. Ne5 {[%clk 0:01:55]}  Bxe5 {[%clk 0:02:21]} 16. dxe5 {[%clk 0:01:55]}  Qxe5 {[%clk 0:02:14]} 17. Bd2 {[%clk 0:01:52]}  Nd7 {[%clk 0:02:09]} 18. Bc3 {[%clk 0:01:50]}  Qc5 {[%clk 0:02:02]} 19. Qd2 {[%clk 0:01:35]}  Ne5 {[%clk 0:01:47]} 20. Bc2 {[%clk 0:01:21]}  Rad8 {[%clk 0:01:37]} 21. Qh6 {[%clk 0:01:21]}  Qf8 {[%clk 0:01:20]} 22. Qh4 {[%clk 0:01:18]}  Be2 {[%clk 0:00:59]} 23. Rfe1 {[%clk 0:01:06]}  Nd7 {[%clk 0:00:51]} 24. Qd4 {[%clk 0:00:53]}  f6 {[%clk 0:00:29]} 25. Rxe2 {[%clk 0:00:47]}  Ne5 {[%clk 0:00:12]} 26. Qf4 {[%clk 0:00:39]}  g5 {[%clk 0:00:03]} 27. Qf5 {[%clk 0:00:34]}  Qg7 {[%clk 0:00:03]} 28. Rae1 {[%clk 0:00:28]}  Rf8 {[%clk 0:00:03]} 29. Qe6+ {[%clk 0:00:23]}  Kh8 {[%clk 0:00:02]} 30. Rxe5 {[%clk 0:00:20]}  fxe5 {[%clk 0:00:03]} 31. Bxe5 {[%clk 0:00:20]} 1-0


[Site "https://www.chess.com"]